[Event "*** Titled Tuesday Blitz"]
[Site "Chess.com"]
[Date "2020.10.20"]
[Round "5"]
[White "katchesskat"]
[Black "shnitez"]
[Result "0-1"]
[WhiteElo "2236"]
[BlackElo "2449"]
[TimeControl "180+1"]
[EndTime "10:58:45 PDT"]
[Termination "shnitez won by checkmate"]

1. c4 {[%clk 0:02:58.9]} 1... c5 {[%clk 0:02:56.3]} 2. Nf3 {[%clk 0:02:54.6]}
2... g6 {[%clk 0:02:55.4]} 3. e3 {[%clk 0:02:54]} 3... Bg7 {[%clk 0:02:55.1]} 4.
Qc2 {[%clk 0:02:53.9]} 4... Nc6 {[%clk 0:02:51.3]} 5. a3 {[%clk 0:02:53.7]} 5...
e5 {[%clk 0:02:42.1]} 6. d3 {[%clk 0:02:53.3]} 6... Nge7 {[%clk 0:02:41.8]} 7.
Nbd2 {[%clk 0:02:51.3]} 7... O-O {[%clk 0:02:41]} 8. Be2 {[%clk 0:02:51.1]} 8...
d6 {[%clk 0:02:34.8]} 9. Rb1 {[%clk 0:02:29.3]} 9... h6 {[%clk 0:02:10.1]} 10.
b4 {[%clk 0:02:29]} 10... b6 {[%clk 0:02:08.6]} 11. b5 {[%clk 0:02:27]} 11...
Nb8 {[%clk 0:01:56.5]} 12. Bb2 {[%clk 0:02:24.6]} 12... f5 {[%clk 0:01:42.5]}
13. h4 {[%clk 0:02:24]} 13... Nd7 {[%clk 0:01:35.9]} 14. g3 {[%clk 0:02:21]}
14... Bb7 {[%clk 0:01:35.4]} 15. Rd1 {[%clk 0:02:09.3]} 15... Qc7 {[%clk
0:01:28]} 16. Rc1 {[%clk 0:02:07.6]} 16... Rae8 {[%clk 0:01:21.4]} 17. Qb3
{[%clk 0:02:05.7]} 17... Nf6 {[%clk 0:01:10.1]} 18. Ra1 {[%clk 0:02:00.8]} 18...
Ng4 {[%clk 0:00:56.2]} 19. a4 {[%clk 0:01:59.9]} 19... Rf7 {[%clk 0:00:53.7]}
20. a5 {[%clk 0:02:00.1]} 20... Kh7 {[%clk 0:00:41.5]} 21. axb6 {[%clk
0:01:57.9]} 21... axb6 {[%clk 0:00:42.4]} 22. Ra7 {[%clk 0:01:57.6]} 22... Nc8
{[%clk 0:00:38]} 23. Ra1 {[%clk 0:01:55.3]} 23... Rfe7 {[%clk 0:00:35.1]} 24.
Qc2 {[%clk 0:01:49.8]} 24... Qd7 {[%clk 0:00:34.3]} 25. Bc3 {[%clk 0:01:45.4]}
25... Re6 {[%clk 0:00:33.2]} 26. e4 {[%clk 0:01:29.3]} 26... Rf6 {[%clk
0:00:20.2]} 27. h5 {[%clk 0:01:25.3]} 27... g5 {[%clk 0:00:17.6]} 28. exf5
{[%clk 0:01:24]} 28... Qxf5 {[%clk 0:00:18.5]} 29. Ne4 {[%clk 0:01:22.8]} 29...
Rf7 {[%clk 0:00:16]} 30. O-O {[%clk 0:01:10.1]} 30... Rff8 {[%clk 0:00:13.4]}
31. Bd2 {[%clk 0:01:06.5]} 31... Kh8 {[%clk 0:00:12.9]} 32. Ra3 {[%clk
0:00:59.2]} 32... Rf7 {[%clk 0:00:12.6]} 33. Qc1 {[%clk 0:00:56.1]} 33... Ref8
{[%clk 0:00:12.1]} 34. Qc2 {[%clk 0:00:53.1]} 34... Qe6 {[%clk 0:00:10.1]} 35.
Kg2 {[%clk 0:00:51.6]} 35... Qf5 {[%clk 0:00:07.8]} 36. Rfa1 {[%clk 0:00:46.4]}
36... Kg8 {[%clk 0:00:07.8]} 37. Ra7 {[%clk 0:00:37.2]} 37... Nxf2 {[%clk
0:00:06.6]} 38. Rxb7 {[%clk 0:00:34.3]} 38... Rxb7 {[%clk 0:00:06.4]} 39. Nxf2
{[%clk 0:00:33.5]} 39... g4 {[%clk 0:00:06]} 40. Nxg4 {[%clk 0:00:21.1]} 40...
Qxg4 {[%clk 0:00:05.8]} 41. Ng1 {[%clk 0:00:19.9]} 41... Qf5 {[%clk 0:00:04.5]}
42. Be3 {[%clk 0:00:20.1]} 42... Rbf7 {[%clk 0:00:03.9]} 43. Rf1 {[%clk
0:00:19.8]} 43... Qe6 {[%clk 0:00:04.3]} 44. Rxf7 {[%clk 0:00:19.7]} 44... Qxf7
{[%clk 0:00:05.2]} 45. Qd1 {[%clk 0:00:19.9]} 45... Ne7 {[%clk 0:00:05.2]} 46.
Bg4 {[%clk 0:00:19.9]} 46... d5 {[%clk 0:00:05.2]} 47. Qe2 {[%clk 0:00:19.2]}
47... e4 {[%clk 0:00:04.8]} 48. cxd5 {[%clk 0:00:19]} 48... exd3 {[%clk
0:00:04.4]} 49. Qxd3 {[%clk 0:00:18.4]} 49... Nxd5 {[%clk 0:00:04.4]} 50. Nf3
{[%clk 0:00:13.4]} 50... c4 {[%clk 0:00:03.8]} 51. Qd2 {[%clk 0:00:12.4]} 51...
c3 {[%clk 0:00:03.7]} 52. Qc1 {[%clk 0:00:12.2]} 52... Nxe3+ {[%clk 0:00:03.8]}
53. Qxe3 {[%clk 0:00:13.1]} 53... Re8 {[%clk 0:00:03.4]} 54. Qd3 {[%clk
0:00:13]} 54... Qe7 {[%clk 0:00:03.2]} 55. Bf5 {[%clk 0:00:12.9]} 55... Qe2+
{[%clk 0:00:03.1]} 56. Kh3 {[%clk 0:00:12.6]} 56... Qxd3 {[%clk 0:00:03.2]} 57.
Bxd3 {[%clk 0:00:13.5]} 57... Re3 {[%clk 0:00:03.5]} 58. Bc4+ {[%clk 0:00:10.2]}
58... Kf8 {[%clk 0:00:03.9]} 59. Nh4 {[%clk 0:00:07.3]} 59... c2 {[%clk
0:00:04.1]} 60. Nf5 {[%clk 0:00:07.5]} 60... Rc3 {[%clk 0:00:03.6]} 61. Ne3
{[%clk 0:00:05.7]} 61... Rxe3 {[%clk 0:00:03.4]} 62. Ba2 {[%clk 0:00:05.7]}
62... c1=Q {[%clk 0:00:03.8]} 63. Be6 {[%clk 0:00:06.1]} 63... Qf1+ {[%clk
0:00:03.7]} 64. Kg4 {[%clk 0:00:06.2]} 64... Rxe6 {[%clk 0:00:04.2]} 65. Kh4
{[%clk 0:00:04.4]} 65... Qf2 {[%clk 0:00:03.1]} 66. Kg4 {[%clk 0:00:04.2]} 66...
Qb2 {[%clk 0:00:03.9]} 67. Kh3 {[%clk 0:00:04]} 67... Qxb5 {[%clk 0:00:04.1]}
68. g4 {[%clk 0:00:04.2]} 68... Qg5 {[%clk 0:00:04.8]} 69. Kg3 {[%clk
0:00:04.3]} 69... Re3+ {[%clk 0:00:05.7]} 70. Kf2 {[%clk 0:00:04.8]} 70... Qf4+
{[%clk 0:00:05.8]} 71. Kg2 {[%clk 0:00:05.1]} 71... Rg3+ {[%clk 0:00:05.8]} 72.
Kh2 {[%clk 0:00:05.6]} 72... Qf2+ {[%clk 0:00:06]} 73. Kh1 {[%clk 0:00:05.7]}
73... Qg2# {[%clk 0:00:06.9]} 0-1

[Event "*** Titled Tuesday Blitz"]
[Site "Chess.com"]
[Date "2020.10.20"]
[Round "5"]
[White "Legendinunknown"]
[Black "SanchezKelvin"]
[Result "1/2-1/2"]
[WhiteElo "2596"]
[BlackElo "2402"]
[TimeControl "180+1"]
[EndTime "10:58:48 PDT"]
[Termination "Game drawn - insufficient material"]

1. d4 {[%clk 0:03:00.9]} 1... Nf6 {[%clk 0:02:59.1]} 2. c4 {[%clk 0:02:59.7]}
2... g6 {[%clk 0:02:55.1]} 3. Nc3 {[%clk 0:02:59.2]} 3... Bg7 {[%clk 0:02:54.9]}
4. e4 {[%clk 0:02:59.3]} 4... d6 {[%clk 0:02:55.6]} 5. Nf3 {[%clk 0:02:59.1]}
5... O-O {[%clk 0:02:55.8]} 6. Be2 {[%clk 0:02:59.5]} 6... c5 {[%clk 0:02:56]}
7. d5 {[%clk 0:02:57.8]} 7... e6 {[%clk 0:02:55]} 8. O-O {[%clk 0:02:56.7]} 8...
exd5 {[%clk 0:02:55.1]} 9. exd5 {[%clk 0:02:57.6]} 9... Bg4 {[%clk 0:02:52.9]}
10. h3 {[%clk 0:02:56.9]} 10... Bxf3 {[%clk 0:02:52.7]} 11. Bxf3 {[%clk
0:02:57.8]} 11... Nfd7 {[%clk 0:02:52.5]} 12. Bf4 {[%clk 0:02:56.9]} 12... Be5
{[%clk 0:02:50.3]} 13. Qd2 {[%clk 0:02:52]} 13... Bxf4 {[%clk 0:02:43.8]} 14.
Qxf4 {[%clk 0:02:52.9]} 14... Ne5 {[%clk 0:02:43.7]} 15. Be2 {[%clk 0:02:51.5]}
15... Nbd7 {[%clk 0:02:40.5]} 16. Qg3 {[%clk 0:02:48.2]} 16... f5 {[%clk
0:02:34.9]} 17. f4 {[%clk 0:02:46.7]} 17... Nf7 {[%clk 0:02:34.6]} 18. Rfe1
{[%clk 0:02:44.5]} 18... Qf6 {[%clk 0:02:26.6]} 19. Bf1 {[%clk 0:02:39.5]} 19...
Rfe8 {[%clk 0:02:22.9]} 20. Qf2 {[%clk 0:02:37.7]} 20... a6 {[%clk 0:02:21.6]}
21. a4 {[%clk 0:02:31.3]} 21... Qd4 {[%clk 0:02:20.5]} 22. Qxd4 {[%clk 0:02:27]}
22... cxd4 {[%clk 0:02:20.2]} 23. Ne2 {[%clk 0:02:25.2]} 23... Re4 {[%clk
0:02:15.6]} 24. Rad1 {[%clk 0:02:24.5]} 24... Rae8 {[%clk 0:02:13.4]} 25. Kf2
{[%clk 0:02:24.4]} 25... d3 {[%clk 0:02:00.1]} 26. Rxd3 {[%clk 0:02:22.6]} 26...
Rxc4 {[%clk 0:01:59.6]} 27. Rc3 {[%clk 0:01:54.3]} 27... Rce4 {[%clk 0:01:54.4]}
28. Rec1 {[%clk 0:01:46]} 28... Nc5 {[%clk 0:01:50.1]} 29. b3 {[%clk 0:01:42.9]}
29... b5 {[%clk 0:01:34.3]} 30. axb5 {[%clk 0:01:38.7]} 30... axb5 {[%clk
0:01:35.2]} 31. g3 {[%clk 0:01:35.3]} 31... b4 {[%clk 0:01:32.6]} 32. Rxc5
{[%clk 0:01:35.1]} 32... dxc5 {[%clk 0:01:30.1]} 33. Rxc5 {[%clk 0:01:36]} 33...
Nd6 {[%clk 0:01:26.8]} 34. Rc6 {[%clk 0:01:33.2]} 34... Rd8 {[%clk 0:01:23.9]}
35. Bg2 {[%clk 0:01:25.3]} 35... Re7 {[%clk 0:01:21.2]} 36. Rb6 {[%clk
0:01:21.1]} 36... Ne4+ {[%clk 0:01:20.9]} 37. Bxe4 {[%clk 0:01:13.8]} 37... Rxe4
{[%clk 0:01:21.8]} 38. d6 {[%clk 0:01:14.1]} 38... Re6 {[%clk 0:01:09.8]} 39.
Rxb4 {[%clk 0:01:11.3]} 39... Rdxd6 {[%clk 0:01:09.4]} 40. Rb8+ {[%clk
0:00:51.2]} 40... Kf7 {[%clk 0:01:07.6]} 41. Rb7+ {[%clk 0:00:48]} 41... Re7
{[%clk 0:01:06.2]} 42. Rxe7+ {[%clk 0:00:47.4]} 42... Kxe7 {[%clk 0:01:06]} 43.
Ke3 {[%clk 0:00:48.3]} 43... Ke6 {[%clk 0:01:02.7]} 44. g4 {[%clk 0:00:47]}
44... Kd5 {[%clk 0:01:01.6]} 45. gxf5 {[%clk 0:00:45.2]} 45... gxf5 {[%clk
0:01:01.4]} 46. Nc3+ {[%clk 0:00:31.6]} 46... Kc5 {[%clk 0:00:58.8]} 47. Ne2
{[%clk 0:00:28.7]} 47... Rh6 {[%clk 0:00:52.8]} 48. Kf3 {[%clk 0:00:22.6]} 48...
Rxh3+ {[%clk 0:00:50.8]} 49. Ng3 {[%clk 0:00:23.1]} 49... Kb4 {[%clk 0:00:40.6]}
50. Kg2 {[%clk 0:00:22.6]} 50... Rh4 {[%clk 0:00:20.5]} 51. Kf3 {[%clk
0:00:22.5]} 51... Kxb3 {[%clk 0:00:12.9]} 52. Nxf5 {[%clk 0:00:22.4]} 52... Rh1
{[%clk 0:00:12.4]} 53. Ng3 {[%clk 0:00:22.2]} 53... Rh6 {[%clk 0:00:10.7]} 54.
Nf5 {[%clk 0:00:21.2]} 54... Rf6 {[%clk 0:00:10]} 55. Kg4 {[%clk 0:00:21.2]}
55... Kc4 {[%clk 0:00:09.6]} 56. Kg5 {[%clk 0:00:21.7]} 56... Rg6+ {[%clk
0:00:09.3]} 57. Kh5 {[%clk 0:00:21.3]} 57... Kc5 {[%clk 0:00:08.2]} 58. Nh4
{[%clk 0:00:20.9]} 58... Rg7 {[%clk 0:00:07]} 59. Nf5 {[%clk 0:00:20.5]} 59...
Rg6 {[%clk 0:00:06.5]} 60. Nh4 {[%clk 0:00:19.8]} 60... Rg1 {[%clk 0:00:06.4]}
61. Nf3 {[%clk 0:00:20]} 61... Rg3 {[%clk 0:00:06.5]} 62. Ng5 {[%clk 0:00:19.6]}
62... Kd5 {[%clk 0:00:06.4]} 63. Nxh7 {[%clk 0:00:18.1]} 63... Ke4 {[%clk
0:00:06.4]} 64. Kh6 {[%clk 0:00:17.2]} 64... Kxf4 {[%clk 0:00:06.2]} 65. Nf6
{[%clk 0:00:17.5]} 65... Kf5 {[%clk 0:00:06.1]} 66. Nd5 {[%clk 0:00:17.7]} 66...
Rg5 {[%clk 0:00:05.5]} 67. Ne7+ {[%clk 0:00:17]} 67... Kg4 {[%clk 0:00:04.9]}
68. Ng6 {[%clk 0:00:16.9]} 68... Ra5 {[%clk 0:00:03.9]} 69. Kg7 {[%clk
0:00:16.9]} 69... Kg5 {[%clk 0:00:03.6]} 70. Kf7 {[%clk 0:00:17.3]} 70... Ra8
{[%clk 0:00:03.7]} 71. Ne7 {[%clk 0:00:17.9]} 71... Ra7 {[%clk 0:00:04.1]} 72.
Ke6 {[%clk 0:00:18.2]} 72... Ra6+ {[%clk 0:00:03.6]} 73. Ke5 {[%clk 0:00:18.2]}
73... Ra5+ {[%clk 0:00:03.9]} 74. Nd5 {[%clk 0:00:19.1]} 74... Rxd5+ {[%clk
0:00:03.8]} 75. Kxd5 {[%clk 0:00:19.4]} 1/2-1/2

[Event "*** Titled Tuesday Blitz"]
[Site "Chess.com"]
[Date "2020.10.20"]
[Round "5"]
[White "Mr_Sinigami"]
[Black "glebus008"]
[Result "1-0"]
[WhiteElo "2505"]
[BlackElo "2330"]
[TimeControl "180+1"]
[EndTime "10:58:52 PDT"]
[Termination "Mr_Sinigami won by checkmate"]

1. c4 {[%clk 0:03:00.9]} 1... e6 {[%clk 0:02:59.3]} 2. Nf3 {[%clk 0:02:59]} 2...
d5 {[%clk 0:02:59.6]} 3. e3 {[%clk 0:02:59.1]} 3... c6 {[%clk 0:02:59.8]} 4. b3
{[%clk 0:02:58.8]} 4... Nf6 {[%clk 0:02:56.2]} 5. Bb2 {[%clk 0:02:58.6]} 5...
Be7 {[%clk 0:02:56.3]} 6. Be2 {[%clk 0:02:58.4]} 6... O-O {[%clk 0:02:56.1]} 7.
O-O {[%clk 0:02:58.9]} 7... c5 {[%clk 0:02:55.8]} 8. cxd5 {[%clk 0:02:56.8]}
8... Nxd5 {[%clk 0:02:54.6]} 9. a3 {[%clk 0:02:54.5]} 9... Bf6 {[%clk 0:02:53]}
10. Qc2 {[%clk 0:02:50.5]} 10... Bxb2 {[%clk 0:02:50.9]} 11. Qxb2 {[%clk
0:02:46.4]} 11... Nc6 {[%clk 0:02:48.4]} 12. Rc1 {[%clk 0:02:43.5]} 12... Qe7
{[%clk 0:02:43.4]} 13. Nc3 {[%clk 0:02:30.2]} 13... Nxc3 {[%clk 0:02:23.2]} 14.
Qxc3 {[%clk 0:02:25.9]} 14... b6 {[%clk 0:02:08.3]} 15. b4 {[%clk 0:02:24.1]}
15... Bb7 {[%clk 0:01:55.3]} 16. bxc5 {[%clk 0:02:22.7]} 16... Qxc5 {[%clk
0:01:55.6]} 17. Qxc5 {[%clk 0:02:21.6]} 17... bxc5 {[%clk 0:01:56.5]} 18. Rab1
{[%clk 0:02:19.1]} 18... Rab8 {[%clk 0:01:55.3]} 19. Rxc5 {[%clk 0:02:18.3]}
19... Ba8 {[%clk 0:01:55.3]} 20. Rbc1 {[%clk 0:01:59.4]} 20... Rb2 {[%clk
0:01:51.5]} 21. Rxc6 {[%clk 0:01:46.1]} 21... Bxc6 {[%clk 0:01:52.4]} 22. Rxc6
{[%clk 0:01:46.2]} 22... Rb1+ {[%clk 0:01:50.1]} 23. Bf1 {[%clk 0:01:45.8]}
23... Ra1 {[%clk 0:01:50.2]} 24. Rc3 {[%clk 0:01:30.4]} 24... Rb8 {[%clk
0:01:46.2]} 25. g3 {[%clk 0:01:28.8]} 25... g6 {[%clk 0:01:43.6]} 26. Kg2 {[%clk
0:01:28.4]} 26... Rbb1 {[%clk 0:01:41.7]} 27. Bd3 {[%clk 0:01:24.7]} 27... Rc1
{[%clk 0:01:40.5]} 28. Rb3 {[%clk 0:01:23.7]} 28... Rc5 {[%clk 0:01:33.8]} 29.
Bb5 {[%clk 0:01:19.7]} 29... a6 {[%clk 0:01:28.9]} 30. Bxa6 {[%clk 0:01:14.4]}
30... Ra5 {[%clk 0:01:29.8]} 31. Be2 {[%clk 0:01:07.2]} 31... R1xa3 {[%clk
0:01:29.5]} 32. Rb6 {[%clk 0:01:04.8]} 32... Ra2 {[%clk 0:01:23.5]} 33. h4
{[%clk 0:01:03.9]} 33... h5 {[%clk 0:01:22.4]} 34. Rd6 {[%clk 0:01:00.8]} 34...
Kf8 {[%clk 0:01:20.6]} 35. Rd7 {[%clk 0:00:54.9]} 35... Ra7 {[%clk 0:01:19]} 36.
Rd6 {[%clk 0:00:49.3]} 36... Ke7 {[%clk 0:01:17.1]} 37. Rb6 {[%clk 0:00:48.6]}
37... R7a5 {[%clk 0:01:10.9]} 38. Bc4 {[%clk 0:00:46.1]} 38... Rc2 {[%clk
0:01:06.7]} 39. d3 {[%clk 0:00:44.8]} 39... Kf6 {[%clk 0:00:43.2]} 40. Rb7
{[%clk 0:00:41.7]} 40... Ra8 {[%clk 0:00:17.6]} 41. Ng5 {[%clk 0:00:38.5]} 41...
Rf8 {[%clk 0:00:17.3]} 42. Nh7+ {[%clk 0:00:37.5]} 42... Kg7 {[%clk 0:00:15.8]}
43. Nxf8 {[%clk 0:00:36.9]} 43... Kxf8 {[%clk 0:00:16.7]} 44. e4 {[%clk
0:00:36.4]} 44... Kg7 {[%clk 0:00:16]} 45. e5 {[%clk 0:00:32.9]} 45... Rc3
{[%clk 0:00:16.9]} 46. Bxe6 {[%clk 0:00:31.9]} 46... Rxd3 {[%clk 0:00:15.4]} 47.
Rxf7+ {[%clk 0:00:31]} 47... Kh6 {[%clk 0:00:16.3]} 48. Rd7 {[%clk 0:00:30]}
48... Rc3 {[%clk 0:00:15.4]} 49. Bg8 {[%clk 0:00:29]} 49... g5 {[%clk
0:00:14.1]} 50. hxg5+ {[%clk 0:00:28.6]} 50... Kxg5 {[%clk 0:00:13.6]} 51. f4+
{[%clk 0:00:23.4]} 51... Kf5 {[%clk 0:00:13.4]} 52. Rf7+ {[%clk 0:00:22.3]}
52... Kg6 {[%clk 0:00:12.8]} 53. Rf6+ {[%clk 0:00:20.4]} 53... Kg7 {[%clk
0:00:12.6]} 54. Be6 {[%clk 0:00:20]} 54... h4 {[%clk 0:00:12.2]} 55. gxh4 {[%clk
0:00:19.5]} 55... Rc2+ {[%clk 0:00:12.4]} 56. Kg3 {[%clk 0:00:18.9]} 56... Rc3+
{[%clk 0:00:13.3]} 57. Kg4 {[%clk 0:00:19]} 57... Rc1 {[%clk 0:00:14.2]} 58. Kg5
{[%clk 0:00:18.8]} 58... Rg1+ {[%clk 0:00:13.9]} 59. Bg4 {[%clk 0:00:19.3]}
59... Rg2 {[%clk 0:00:13.3]} 60. h5 {[%clk 0:00:19.3]} 60... Rg1 {[%clk
0:00:12.8]} 61. h6+ {[%clk 0:00:19.4]} 61... Kh7 {[%clk 0:00:12.9]} 62. e6
{[%clk 0:00:19.4]} 62... Re1 {[%clk 0:00:12]} 63. f5 {[%clk 0:00:18.6]} 63...
Re2 {[%clk 0:00:10.3]} 64. Rf7+ {[%clk 0:00:18.4]} 64... Kh8 {[%clk 0:00:09.2]}
65. Bxe2 {[%clk 0:00:17.9]} 65... Kg8 {[%clk 0:00:09.1]} 66. Kg6 {[%clk
0:00:17.5]} 66... Kh8 {[%clk 0:00:10]} 67. e7 {[%clk 0:00:17.3]} 67... Kg8
{[%clk 0:00:07.2]} 68. f6 {[%clk 0:00:17.4]} 68... Kh8 {[%clk 0:00:07.8]} 69.
Bg4 {[%clk 0:00:17.6]} 69... Kg8 {[%clk 0:00:08.7]} 70. Bf5 {[%clk 0:00:17.7]}
70... Kh8 {[%clk 0:00:09.6]} 71. Be6 {[%clk 0:00:17.7]} 71... Kg8 {[%clk
0:00:10.5]} 72. h7+ {[%clk 0:00:16.9]} 72... Kh8 {[%clk 0:00:11.4]} 73. e8=Q#
{[%clk 0:00:17.1]} 1-0

[Event "*** Titled Tuesday Blitz"]
[Site "Chess.com"]
[Date "2020.10.20"]
[Round "5"]
[White "davidkalashian"]
[Black "kiborg1987"]
[Result "0-1"]
[WhiteElo "2606"]
[BlackElo "2829"]
[TimeControl "180+1"]
[EndTime "10:58:53 PDT"]
[Termination "kiborg1987 won by resignation"]

1. d4 {[%clk 0:03:00.3]} 1... d6 {[%clk 0:02:57.4]} 2. e4 {[%clk 0:02:59.4]}
2... Nf6 {[%clk 0:02:57.5]} 3. Nc3 {[%clk 0:02:59.4]} 3... e5 {[%clk 0:02:58.4]}
4. Nf3 {[%clk 0:02:58]} 4... Nbd7 {[%clk 0:02:58.2]} 5. Bc4 {[%clk 0:02:57]}
5... Be7 {[%clk 0:02:58.6]} 6. O-O {[%clk 0:02:55.5]} 6... O-O {[%clk
0:02:59.1]} 7. a4 {[%clk 0:02:55.5]} 7... c6 {[%clk 0:02:58.5]} 8. Re1 {[%clk
0:02:55]} 8... a5 {[%clk 0:02:58.7]} 9. h3 {[%clk 0:02:52.5]} 9... exd4 {[%clk
0:02:58]} 10. Nxd4 {[%clk 0:02:51.2]} 10... Nc5 {[%clk 0:02:58.9]} 11. Qf3
{[%clk 0:02:44.1]} 11... Be6 {[%clk 0:02:56.3]} 12. Bf1 {[%clk 0:02:26.6]} 12...
Qb6 {[%clk 0:02:55.8]} 13. b3 {[%clk 0:02:12.1]} 13... Rad8 {[%clk 0:02:42.3]}
14. Be3 {[%clk 0:02:02.1]} 14... Bc8 {[%clk 0:02:28.3]} 15. Rad1 {[%clk
0:01:57]} 15... Rfe8 {[%clk 0:02:27.6]} 16. Nf5 {[%clk 0:01:51.8]} 16... Bxf5
{[%clk 0:02:24.5]} 17. Qxf5 {[%clk 0:01:49.4]} 17... Nfd7 {[%clk 0:02:24.5]} 18.
Bf4 {[%clk 0:01:36.8]} 18... g6 {[%clk 0:02:18.8]} 19. Qg4 {[%clk 0:01:36.1]}
19... Ne5 {[%clk 0:02:18.7]} 20. Qg3 {[%clk 0:01:27.6]} 20... Qc7 {[%clk
0:02:01.2]} 21. Bh6 {[%clk 0:01:17.2]} 21... Bf6 {[%clk 0:01:56.6]} 22. f3
{[%clk 0:01:01.3]} 22... Qe7 {[%clk 0:01:50.5]} 23. Qf4 {[%clk 0:00:41]} 23...
Kh8 {[%clk 0:01:32.2]} 24. Qd2 {[%clk 0:00:36]} 24... g5 {[%clk 0:01:28.8]} 25.
Ne2 {[%clk 0:00:25.5]} 25... Rg8 {[%clk 0:01:28.6]} 26. Ng3 {[%clk 0:00:22.9]}
26... Rg6 {[%clk 0:01:23.4]} 27. Nf5 {[%clk 0:00:22.4]} 27... Qe6 {[%clk
0:01:22.6]} 28. Qxa5 {[%clk 0:00:21.6]} 28... Rd7 {[%clk 0:01:11]} 29. b4 {[%clk
0:00:16.7]} 29... b6 {[%clk 0:01:09.4]} 30. Qxb6 {[%clk 0:00:13]} 30... Nxa4
{[%clk 0:01:09.3]} 31. Qa5 {[%clk 0:00:11.5]} 31... Nc3 {[%clk 0:01:08.7]} 32.
Ra1 {[%clk 0:00:09]} 32... Bd8 {[%clk 0:00:58]} 33. Qa6 {[%clk 0:00:06.3]} 33...
Rxh6 {[%clk 0:00:55.3]} 34. Nxh6 {[%clk 0:00:05.3]} 34... Qxh6 {[%clk
0:00:56.2]} 35. Qc8 {[%clk 0:00:05.3]} 35... Qe6 {[%clk 0:00:52.3]} 36. b5
{[%clk 0:00:04.1]} 36... Nxb5 {[%clk 0:00:51.2]} 37. Ra8 {[%clk 0:00:02.2]}
37... Kg7 {[%clk 0:00:50.7]} 38. c4 {[%clk 0:00:01.8]} 38... Nd4 {[%clk
0:00:51]} 39. Rd1 {[%clk 0:00:01.8]} 39... c5 {[%clk 0:00:50.6]} 40. Qa6 {[%clk
0:00:01.1]} 40... Bf6 {[%clk 0:00:48.7]} 41. Qa4 {[%clk 0:00:02]} 41... Rd8
{[%clk 0:00:39.7]} 42. Qa7 {[%clk 0:00:01.6]} 42... Rxa8 {[%clk 0:00:25.1]} 43.
Qxa8 {[%clk 0:00:02.5]} 43... Nxc4 {[%clk 0:00:25.7]} 44. Qd5 {[%clk 0:00:02]}
44... Qxd5 {[%clk 0:00:25.1]} 45. exd5 {[%clk 0:00:02.9]} 45... Ne3 {[%clk
0:00:26]} 46. Ra1 {[%clk 0:00:02.9]} 46... Nxd5 {[%clk 0:00:26.4]} 47. Ra6
{[%clk 0:00:03.6]} 47... Be5 {[%clk 0:00:26.1]} 48. Bc4 {[%clk 0:00:04.1]} 48...
Ne3 {[%clk 0:00:26.3]} 49. Ba2 {[%clk 0:00:05]} 49... c4 {[%clk 0:00:20.4]} 50.
Ra7 {[%clk 0:00:05.9]} 50... d5 {[%clk 0:00:20.4]} 51. Kf2 {[%clk 0:00:06]}
51... Nec2 {[%clk 0:00:17.8]} 52. g3 {[%clk 0:00:04.9]} 52... Nb4 {[%clk
0:00:17.1]} 53. Bb1 {[%clk 0:00:04]} 53... Nd3+ {[%clk 0:00:17.3]} 54. Bxd3
{[%clk 0:00:03.5]} 54... cxd3 {[%clk 0:00:18.2]} 55. Ke3 {[%clk 0:00:03.9]}
55... Nf5+ {[%clk 0:00:18.2]} 56. Kxd3 {[%clk 0:00:03.6]} 56... Nxg3 {[%clk
0:00:15.7]} 57. Ra5 {[%clk 0:00:04.5]} 57... Nh5 {[%clk 0:00:16]} 58. Rb5 {[%clk
0:00:03.4]} 58... Nf4+ {[%clk 0:00:16.9]} 59. Ke3 {[%clk 0:00:03.7]} 59... h5
{[%clk 0:00:17.2]} 60. Kf2 {[%clk 0:00:04.6]} 60... h4 {[%clk 0:00:17.5]} 61.
Ke3 {[%clk 0:00:04.8]} 61... Kf6 {[%clk 0:00:17]} 62. Kf2 {[%clk 0:00:05.2]}
62... Nxh3+ {[%clk 0:00:16.5]} 63. Ke3 {[%clk 0:00:04.4]} 63... Nf4 {[%clk
0:00:17.4]} 64. Rb6+ {[%clk 0:00:04.6]} 64... Kf5 {[%clk 0:00:17.4]} 65. Rb7
{[%clk 0:00:05.5]} 65... f6 {[%clk 0:00:17.8]} 66. Ra7 {[%clk 0:00:05.9]} 66...
d4+ {[%clk 0:00:18.5]} 67. Kd2 {[%clk 0:00:04.8]} 67... d3 {[%clk 0:00:19.4]}
68. Rh7 {[%clk 0:00:03.7]} 68... h3 {[%clk 0:00:19.1]} 69. Rh8 {[%clk
0:00:03.7]} 69... g4 {[%clk 0:00:19.2]} 70. fxg4+ {[%clk 0:00:03.3]} 70... Kxg4
{[%clk 0:00:20.1]} 71. Rg8+ {[%clk 0:00:03.7]} 71... Kf3 {[%clk 0:00:20.5]} 72.
Rh8 {[%clk 0:00:04.6]} 72... Kg2 {[%clk 0:00:20.9]} 73. Rg8+ {[%clk 0:00:04.9]}
73... Kf1 {[%clk 0:00:21.3]} 74. Rh8 {[%clk 0:00:04.9]} 74... Kg1 {[%clk
0:00:21.7]} 75. Rg8+ {[%clk 0:00:03.8]} 75... Ng2 {[%clk 0:00:22]} 76. Kxd3
{[%clk 0:00:03.5]} 76... h2 {[%clk 0:00:22.4]} 77. Rh8 {[%clk 0:00:04.4]} 77...
h1=Q {[%clk 0:00:22.9]} 78. Rxh1+ {[%clk 0:00:04]} 78... Kxh1 {[%clk 0:00:23.8]}
0-1